Cogmind - Beta 16 @@@ ROGUE MODE // 2025.11.21 @ 14:57:18 Player: guru-sr Result: Destroyed by A8-IGC(R) with Subdweller Laser Performance ------------- Evolutions (0) 0 Regions Visited (2) 400 Robots Destroyed (36) 180 Value Destroyed (805) 805 Prototype IDs (2) 40 Alien Tech Used (0) 0 Bonus (-21) -21 TOTAL SCORE: 1404 Bonus ------- Friendly Fire -21 Cogmind --------- Core Integrity 0/250 Matter 245/300 Energy 265/265 System Corruption 1% Temperature Cool (13) Movement Treading (320) Ox2 Location -10/Subcaves Parts ------- > --- POWER (1) -------- Improved Ion Engine > --- PROPULSION (2) --- Light Treads Light Treads > --- UTILITY (2) ------ Huge Storage Unit Makeshift Light Armor Plating > --- WEAPON (2) ------- Particle Cannon Battle Cannon > --- INVENTORY (25) --- Improved Ion Engine Improved Ion Engine Light Treads Compact Wheel Compact Wheel High-capacity Battery (250) High-capacity Matter Pod (200) Visual Processing Unit Improved Terrain Scanner Seismic Detector ECM Suite Propulsion Shielding EM Pulse Gun Riot Gun Subdweller Laser Particle Cannon Particle Cannon Particle Cannon Subdweller Machine Gun Improved Light Cannon Improved Light Cannon Grenade Launcher Subdweller Shrapnel Launcher Datajack Mining Laser Peak State ------------ > --- POWER ------------ Improved Ion Engine > --- PROPULSION ------- Light Treads Light Treads > --- UTILITY ---------- Huge Storage Unit Makeshift Light Armor Plating > --- WEAPON ----------- Particle Cannon Battle Cannon > --- INVENTORY -------- Improved Ion Engine Improved Ion Engine Light Treads Compact Wheel Compact Wheel High-capacity Battery High-capacity Matter Pod Visual Processing Unit Improved Terrain Scanner Seismic Detector ECM Suite Propulsion Shielding EM Pulse Gun Riot Gun Subdweller Laser Particle Cannon Particle Cannon Particle Cannon Subdweller Machine Gun Improved Light Cannon Improved Light Cannon Grenade Launcher Subdweller Shrapnel Launcher Datajack Mining Laser [Rating: 17] Favorites ----------- Power Improved Ion Engine Engine Improved Ion Engine Propulsion Light Treads Treads Light Treads Wheel Compact Wheel Utility Seismic Detector Device Seismic Detector Storage Huge Storage Unit Protection Propulsion Shielding Weapon Improved Light Cannon Energy Gun Small Laser Energy Cannon Particle Cannon Ballistic Gun Assault Rifle Ballistic Cannon Improved Light Cannon Launcher Grenade Launcher Special Weapon Mining Laser Build | -11 -10 -10 ------- Run | Yrd Mat Sub Slots Evolved . | . . . Power . | . . . Propulsion . | . . . Utility . | . . . Weapon . | . . . Parts Attached 37 | 7 15 15 Power 4 | 1 3 . Engine 4 | 1 3 . Core . | . . . Reactor . | . . . Propulsion 5 | 2 2 1 Treads 4 | 2 1 1 Leg . | . . . Wheel 1 | . 1 . Hover . | . . . Flight . | . . . Utility 11 | 2 5 4 Device 2 | 1 . 1 Storage 5 | 1 4 . Processor . | . . . Hackware . | . . . Protection 4 | . 1 3 Artifact . | . . . Weapon 17 | 2 5 10 Energy Gun 5 | 1 1 3 Energy Cannon 5 | . 2 3 Ballistic Gun 2 | 1 . 1 Ballistic Cannon 3 | . 1 2 Launcher 1 | . . 1 Special Weapon 1 | . 1 . Impact Weapon . | . . . Slashing Weapon . | . . . Piercing Weapon . | . . . Special Melee Weapon . | . . . Unidentified Prototypes . | . . . Parts Lost 4 | . . 4 Power . | . . . Propulsion 1 | . . 1 Utility 1 | . . 1 Weapon 2 | . . 2 Highest Loss Streak 3 | . . 3 To Critical Strikes . | . . . Average Backups 20 | 4 15 24 Power 1 | . 1 2 Propulsion 2 | . 2 2 Utility 6 | 1 6 7 Weapon 8 | 1 4 11 Tool/Special . | . . . Unused Backups 22 | . 6 16 Power 3 | . 1 2 Propulsion 1 | . . 1 Utility 9 | . 3 6 Weapon 8 | . 2 6 Tool/Special 1 | . . 1 Average Slot Usage (%) 99 | . 99 99 Engine 14 | . 14 14 Treads 22 | . 21 22 Wheel 5 | . 6 5 Device 13 | . 13 12 Storage 14 | . 14 14 Energy Gun 4 | . 11 . Energy Cannon 9 | . 2 13 Ballistic Gun 4 | . 11 1 Ballistic Cannon 9 | . 2 12 Peak Build Rating 17 | 7 13 17 Average Rating 11 | 5 9 13 On Entrance 6 | . 7 12 Avg Prop Armor Cover (%) 12 | . 12 12 Naked Turns . | . . . Heaviest Build 100 | 12 96 100 Greatest Support 40 | 40 40 40 Greatest Overweight (x) 6 | . 5 6 Average Overweight (x) 3 | . 2 3 Largest Inventory Capacity 25 | 8 25 25 Average Capacity 22 | 7 20 25 Most Carried 25 | 7 25 25 Average Carried 20 | 4 15 24 Final Capacity 25 | 8 25 25 Final Carried 25 | 7 25 25 Class Distribution -------------------- 93% | Mutant 6% | Scavenger-Mutant Dominant Class ---------------- Mutant | -10/Materials Mutant | -10/Subcaves Resources | -11 -10 -10 ----------- Run | Yrd Mat Sub Matter Collected 1563 | 306 610 647 Remotely . | . . . Salvage Created 1107 | 149 646 312 Parts 74 | 13 42 19 Haulers Intercepted 2 | . 2 . Recyclers Shooed 1 | 1 . . Parts Field Recycled . | . . . Retrieved Matter . | . . . Parts Self-Destructed 15 | . . 15 Prevented . | . . . Parts Restored . | . . . Kills | -11 -10 -10 ------- Run | Yrd Mat Sub Combat Hostiles Destroyed 22 | . 12 10 Guns 11 | . 10 1 Cannons 9 | . 2 7 AOE 2 | . . 2 Classes Destroyed 11 | 2 6 3 Builder 2 | . 2 . Tunneler 4 | 4 . . Hauler 2 | . 2 . Recycler 2 | 1 1 . Operator 1 | . 1 . Watcher 3 | . 3 . Swarmer 6 | . 3 3 Grunt 9 | . 9 . Sentry 1 | . . 1 Artisan 1 | . . 1 Subdweller 6 | . . 6 Best Kill Streak 3 | 2 3 2 Combat Bots Only 3 | . 3 2 Max Kills in Single Turn 2 | 1 2 2 Gunslinging 1 | . 1 . Exploded 2 | . . 2 Melee . | . . . Uniques/NPCs Destroyed . | . . . Combat | -11 -10 -10 -------- Run | Yrd Mat Sub Hostile Shots Fired 107 | . 48 59 Missed 30 | . 18 12 Hits 77 | . 30 47 Projectile 77 | . 30 47 Damage Taken 1299 | . 357 942 Core 261 | . 81 180 Absorbed by Shields . | . . . Redirected to Shielding 76 | . 8 68 Regen/Repaired (Parts) 69 | . 69 . Core Remaining (%) 100 | 100 . . Volleys Fired 129 | 12 72 45 Largest 2 | 2 2 2 Hottest 120 | 60 120 113 Shots Fired 243 | 24 137 82 Gun 164 | 24 122 18 Cannon 61 | . 2 59 Launcher 2 | . . 2 Special 16 | . 13 3 Kinetic 115 | 12 65 38 Thermal 122 | 12 72 38 Explosive 2 | . . 2 Electromagnetic 4 | . . 4 Robot Hit Streak 19 | 10 19 15 Robot Miss Streak 4 | 2 4 2 Penetration Max . | . . . Secondary Targets 2 | . 2 . Max Gunslinging Chain 1 | . 1 . Shots Hit Robots 151 | 17 81 53 Core Hits 57 | 6 32 19 Critical Kills . | . . . Critical Parts Destroyed . | . . . Critical Strikes . | . . . Melee Attacks . | . . . Impact . | . . . Slashing . | . . . Piercing . | . . . Sneak Attacks . | . . . Combat Hostiles . | . . . Follow-up Attacks . | . . . Damage Inflicted 2515 | 204 1112 1199 Guns 1453 | 204 979 270 Cannons 888 | . 37 851 Explosions 78 | . . 78 Melee . | . . . Ramming . | . . . Kinetic 1187 | 111 545 531 Thermal 1212 | 93 567 552 Explosive 78 | . . 78 Electromagnetic 38 | . . 38 Impact . | . . . Slashing . | . . . Piercing . | . . . Highest Corruption 1 | . 1 1 Average Corruption 1 | . 1 1 Corruption Purged . | . . . Corruption Blocked . | . . . Effects 38 | . 10 28 Message Errors 10 | . 3 7 Matter Fused 8 | . 2 6 Heat Flow Errors 7 | . 1 6 Energy Discharges 3 | . . 3 Data Loss (minor) 5 | . 3 2 Data Loss (major) 1 | . . 1 Misfires 1 | . 1 . Alerts 2 | . . 2 Weapon Failures 1 | . . 1 Overload Shots . | . . . Overflow Damage 9 | . 9 . Projectiles 9 | . 9 . Explosions . | . . . Melee . | . . . Knockbacks 8 | . . 8 Impact . | . . . Kinetic 8 | . . 8 Secondary . | . . . Self-Inflicted Damage 11 | . . 11 Shots 1 | . . 1 Rammed . | . . . Targets Rammed . | . . . Kicked . | . . . Crushed . | . . . Highest Temperature 205 | . 191 205 Average Temperature 44 | . 45 39 Received Heat Transfer 390 | . 186 204 Siege Activations . | . . . Martial Activations . | . . . Shielding Activations . | . . . Robots Disrupted . | . . . Combat Hostiles . | . . . Robots Corrupted . | . . . Combat Hostiles . | . . . Parts Fried . | . . . Impact Corruptions . | . . . Robots Melted . | . . . Combat Hostiles . | . . . Parts Melted 5 | . . 5 Heat Transferred 2299 | 225 1246 828 Parts Sabotaged . | . . . Parts Stolen . | . . . Parts Stripped . | . . . Power Chain Reactions . | . . . Alert | -11 -10 -10 ------- Run | Yrd Mat Sub Maximum Alert Level . | . . . Low Security (%) 100 | 100 100 . Level 1 . | . . . Level 2 . | . . . Level 3 . | . . . Level 4 . | . . . Level 5 . | . . . High Security . | . . . Max Security . | . . . Peak Influence 149 | 5 149 . Initial . | . . . Average 38 | . 43 . Influence Increases 602 | 25 472 105 Destroy 0b10 Robot/C 320 | . 240 80 Destroy 0b10 Robot/NC 70 | 25 45 . Destroy Leader 80 | . 70 10 Successful Hack 31 | . 31 . Select Force Hacks 60 | . 60 . Disable Machine 15 | . 15 . Destroy Structure 11 | . 11 . Lose Combat Pursuer 15 | . . 15 Influence Decreases 602 | 25 419 158 Entered New Map 26 | . . 26 Time Decay 546 | 25 419 102 Lost Part 30 | . . 30 Squads Dispatched 3 | . 3 . Investigation 2 | . 2 . Extermination . | . . . Reinforcement 1 | . 1 . Assault . | . . . Garrison . | . . . Intercept . | . . . Searches Triggered . | . . . Construction Impeded . | . . . Haulers Reinforced . | . . . Active Scanning Responses . | . . . Cargo Convoy Interrupts . | . . . Stealth | -11 -10 -10 --------- Run | Yrd Mat Sub Distress Signals 3 | . 3 . Communications Jammed . | . . . Distress Signals . | . . . Times Spotted 40 | . 27 13 Peak Tracking Total 3 | . 3 3 Tactical Retreats 1 | . . 1 Traps | -11 -10 -10 ------- Run | Yrd Mat Sub Traps Triggered 1 | . 1 . Indirectly . | . . . Trap Hack Attempts . | . . . Triggered . | . . . Disarmed . | . . . Reprogrammed . | . . . Reused . | . . . Traps Extracted . | . . . Installed . | . . . Triggered . | . . . Machines | -11 -10 -10 ---------- Run | Yrd Mat Sub Machines Disabled 1 | . 1 . Max in Single Turn 1 | . 1 . Machines Repaired . | . . . Machines Dismantled . | . . . Machines Sabotaged . | . . . Overloaded Fab Kills . | . . . Hacking | -11 -10 -10 --------- Run | Yrd Mat Sub Machines Accessed 10 | . 10 . Terminals 7 | . 7 . Fabricators . | . . . Repair Stations 1 | . 1 . Recycling Units 2 | . 2 . Scanalyzers . | . . . Garrison Access . | . . . Total Hacks 39 | . 39 . Successful 24 | . 24 . Failed 15 | . 15 . Catastrophic . | . . . Database Lockouts . | . . . Manual 31 | . 31 . Terminals 32 | . 32 . Fabricators . | . . . Repair Stations 3 | . 3 . Recycling Units 4 | . 4 . Scanalyzers . | . . . Garrison Access . | . . . Terminal Hacks 9 | . 9 . Robot Analysis 7 | . 7 . Prototype ID Bank 1 | . 1 . Locate Traps 1 | . 1 . Fabricator Hacks . | . . . Repair Station Hacks 2 | . 2 . Scan Component 1 | . 1 . Repair 1 | . 1 . Recycling Unit Hacks 2 | . 2 . Report Inventory 2 | . 2 . Scanalyzer . | . . . Garrison Access Hacks . | . . . Unauthorized Hacks 11 | . 11 . Terminals 9 | . 9 . Botnet 2 | . 2 . Operators 1 | . 1 . Skim 6 | . 6 . Fabricators . | . . . Repair Stations . | . . . Recycling Units 2 | . 2 . Tunnel 2 | . 2 . Scanalyzers . | . . . Garrison Access . | . . . Data Cores Recovered . | . . . Used . | . . . Hacking Detections 9 | . 9 . Full Trace Events . | . . . Feedback Events . | . . . Feedback Blocked . | . . . Robot Schematics Acquired . | . . . Robots Built . | . . . Authchips . | . . . Time . | . . . Total Robot Build Rating . | . . . Part Schematics Acquired . | . . . Parts Built . | . . . Authchips . | . . . Time . | . . . Total Part Build Rating . | . . . Part Studies Acquired . | . . . Parts Repaired 1 | . 1 . Time 26 | . 26 . Parts Recycled . | . . . Recycled Matter . | . . . Retrieved Matter . | . . . Retrieved Components . | . . . Parts Scanalyzed . | . . . Part Schematics Acquired . | . . . Parts Damaged . | . . . Bothacking | -11 -10 -10 ------------ Run | Yrd Mat Sub Used RIF Installer . | . . . Robots Hacked . | . . . Non-combat . | . . . Combat . | . . . Robot Hacks Applied . | . . . Relay Couplers Released . | . . . Fabnet Peak Effective % . | . . . Robots Rewired . | . . . Allies Hacked . | . . . Hacks Repelled . | . . . Allies | -11 -10 -10 -------- Run | Yrd Mat Sub Total Allies . | . . . Largest Group . | . . . Highest-Rated Group . | . . . Highest-Rated Ally . | . . . Total Orders . | . . . Ally Attacks . | . . . Total Damage . | . . . Kills . | . . . Allies Corrupted . | . . . Allies Melted . | . . . Intel | -11 -10 -10 ------- Run | Yrd Mat Sub Active Infowar (turns) 5893 | 101 2020 3772 Seismic 5893 | 101 2020 3772 Robot Analysis Total 7 | . 7 . Derelict Logs Recovered . | . . . Drone Launches . | . . . Drone Recoveries . | . . . Exploration | -11 -10 -10 ------------- Run | Yrd Mat Sub Turns Passed 6453 | 244 2053 4156 Spaces Moved 2557 | 122 907 1528 Core 5 | 5 . . Treads 1232 | 117 422 693 Legs . | . . . Wheels 1320 | . 485 835 Hover . | . . . Flight . | . . . Fastest Speed 50 | 50 160 175 Average Speed 215 | 155 179 242 Slowest Speed 480 | 160 240 480 Overloaded Moves . | . . . Propulsion Burnouts . | . . . Robots Hopped . | . . . Potential Cave-ins . | . . . Cave-ins Triggered . | . . . Exploration Rate (%) 50 | 6 98 48 Regions Visited 2 Branch Regions 1 Pre-discovered Areas 2 | . 2 . Known Exits Taken 1 | . 1 . Unknown Exits Taken 1 | 1 . . Scrap Searched 3 | . . 3 Spaces Dug 8 | . 8 . Terrain Destroyed 20 | . 9 11 Melee . | . . . Projectile 11 | . 9 2 AOE 9 | . . 9 Terrain Rammed . | . . . Walls Destroyed . | . . . Machines Disabled . | . . . Actions | -11 -10 -10 --------- Run | Yrd Mat Sub Total 3192 | 149 1166 1877 Wait 358 | 2 115 241 Move 2555 | 121 906 1528 Hop . | . . . Pick Up 45 | 7 27 11 Fast Attach 13 | 7 5 1 Attach 6 | . 1 5 Detach 1 | . . 1 Swap 60 | . 23 37 Drop 25 | . 17 8 Fire 129 | 12 72 45 Melee . | . . . Ram . | . . . Kick . | . . . Crush . | . . . Escape Stasis . | . . . Rewire . | . . . Trap . | . . . Miscellaneous . | . . . Route ------- -11/Scrapyard -10/Materials (discovered 5 exits: [*Mat x3] / [*Min] / *Sub) -10/Subcaves (discovered 3 exits: *Mat x2 / Rec) History --------- Turn | Location | Event 10 | -11/Scrapyard | Discovered new exit (range 15) 245 | -11/Scrapyard | Entered Materials 303 | -10/Materials | Build established: Mutant 605 | -10/Materials | Discovered new exit (range 15) 809 | -10/Materials | Discovered new exit (range 11) 1625 | -10/Materials | Discovered new exit (range 5) 1745 | -10/Materials | Derelicts attacked the area 1772 | -10/Materials | Identified exit to Subcaves 1799 | -10/Materials | Build established: Scavenger-Mutant 1837 | -10/Materials | Learned location of 2 exits from Subcaves 1892 | -10/Materials | Loaded intel: 8 terminal locations 1923 | -10/Materials | Discovered new exit (range 16) 1937 | -10/Materials | Learned Materials terminal intel 1973 | -10/Materials | Learned location of 1 exit from Recycling 2171 | -10/Materials | Repaired Lgt. Treads 2223 | -10/Materials | Build established: Mutant 2298 | -10/Materials | Entered Subcaves 2299 | -10/Subcaves | Approached by a straggling Scientist 2299 | -10/Subcaves | Identified exit to Materials 2299 | -10/Subcaves | Identified exit to Recycling 2437 | -10/Subcaves | Shifting Twisted Machinery released Sub. Machine Gun 2439 | -10/Subcaves | Shifting Twisted Machinery released Scrap Shield 3171 | -10/Subcaves | Curiously followed by a Cobbler waking with a query about "LVR3C" 3340 | -10/Subcaves | Shifting Twisted Machinery released Flamer 3436 | -10/Subcaves | Core integrity fell below 50% 3534 | -10/Subcaves | Shifting Twisted Machinery released Sub. Laser 3597 | -10/Subcaves | Core integrity fell below 20% 3623 | -10/Subcaves | Lost 3 parts (1n1u1w) 3955 | -10/Subcaves | Shifting Twisted Machinery released Mak. Spear 4411 | -10/Subcaves | Discovered exit to Materials (range 7) 4869 | -10/Subcaves | A swath of the cavern ceiling suddenly collapsed 6454 | -10/Subcaves | Destroyed by A8-IGC(R) with Subdweller Laser Last Messages --------------- 05037_ System corrupted: Component data lost. 05193_ Acquired Battle Cannon. 05234_ System corrupted: Heat flow error (+220). 05325_ System corrupted: Heat flow error (+150). 05340_ 3CHKYYSHPIPCD5OV1TE=%H| 9ADZ 5 05402_ Dropped Targeting Computer. 05406_ Acquired Mak. Light Armor Plating. 05601_ System corrupted: Matter fused (-5). 05633_ OBO8F5BUR J 9OZJWYJRU:FG 06450_ Acquired 5 matter. 06452_ A8-IGC(R) knocked back. Map ----- +----------------------------------------------------+ | ???????????????????????????????????????????#"" ""# | | ???????????????????????????????????????????#" ###" | | ???????????????????????????????????????????##"#### | | ???????????????????????????????????????????## # #? | | ????????????????????????????????????????????#"# | | ???????????????????????????????????????????##"# | | ???????????????????????????????????????????#""## | | ???????????????????#???????????????????????#" "## | | ????????????????? "" ??????????????????????## #### | | ????????????????? ?????????????????#######" ## | | ?????????????????? ????????????????# "###"""## | | ??????????????? ?? ???"#??????????#"&# ##"""" # | | ????????????????%?? ?"" ??????????#$&# #""#" | | ????????????????? " "???????????#$"# # # | | ????????????????? " "???????????#$#### ## | | ?????????????????? " ???????????##???### ### | | ?????????????????## #??????????????????####?# | | ????????????????## #######?????????????????# | | ????????????????? # # "" ##??????????????### | | ??????????????????? # # #### #??????????????# | | ????????????????????# #???## #?????????###### | | ????????????????????#R% #?????# #?????????# | | ??????????????????### #?????# #?????????# | | ?????????????????## % #???## #?????????## ### | | ?????????????????# ##### #??????????#####?# | | ?????????????????# @ #????????????????# | | ?????????????????## < ######????###?????????# | | ??????????????????## ######????## ##????????? | | ???????????????????## ###### ####?# ""####???### | | ???????????????????## #?# ##?#" ##??# | | ???????????????????# #### ### ##?# | | ???????????????????## # # # ## #?# | | ????????????????????# #### #### | | ????????????????????## # ####??# ### | | ?????????????????????######????## ## | | ???????????????????????????????# " !& #? | | ??????????????????????????????# ## " ##? | | ??????????????????????????????## ##### & "####?? | | ???????????????????????????????#####??## ###????? | | ??????????????????????????????????????# ##?????? | | ????????????????????????????????????#### ####### | | ?????????????????????????????????####""# ## ## | | ????????????????????????????????## " | | ????????????????????????????????# * ### # | | ????????????????????????????????# #### #?### | | ????????????????????????????????# ### ##???? | | ????????????????????????????????## # #????? | | ????????????????????????###?????# #????? | | ????????????????????????# ###???## #????? | | ????????????????????????# #??## ##???? | +----------------------------------------------------+ Best States ------------- Heat Dissipation 25 Energy Generation 12 Energy Capacity 265 Matter Stores 300 Matter Capacity 300 Sight Range 16 Terrain Scan Density 10 Armor Coverage 100 Propulsion Shielding 33 Evasion (%) 40 Recoil Reduction 2 Item Schematics ----------------- None Robot Schematics ------------------ None Fabricated ------------ Nothing Repaired ---------- Lgt. Treads | 50% | -10/Materials Studied --------- None Alien Tech Used ----------------- None Achievements -------------- None Challenges ------------ None Game ------ Seed UltimateImprovedSword Manual? 0 Play Time 00:44:17 Cumulative 54.8 hours Start 2025.11.21 @ 14:12:23 End 2025.11.21 @ 14:57:18 Sessions 1 Manual Loads 0 Difficulty Rogue Special Mode None Game No. 32 Rogue 32 Adventurer 0 Explorer 0 Win Type - Total 1 Types 1/0/0/0/0/0/0/0/0/0 Lore% 22 Gallery% 28 Achievement% 34 Wizard Run 0 Options --------- Layout 0 ASCII 0 Keyboard 0 Movement Mouse Keybinds 0 Fullscreen 1 Font 18/SmallcapsGlow Map View 76x50 Zoom Use 0% Tactical HUD 1 Map Filters NONE Filters NONE Steam 1 RUN: 8028def2-c6c4-4678-a2dd-bd4a8e524944